[Event "1000GM Schev-G3 March 2024"]
[Site "Santa Clara"]
[Date "2024.03.10"]
[Round "2.2"]
[White "Dominguez Aguilar, Guillermo"]
[Black "Penagalapati, Abhinav"]
[Result "1-0"]
[ECO "D26"]
[WhiteElo "2284"]
[BlackElo "2043"]
[Annotator "TA"]
[PlyCount "51"]
[EventDate "2024.03.06"]
[EventType "schev"]
[EventCountry "USA"]
[SourceTitle "playchess.com"]
[Source "ChessBase"]
[SourceQuality "1"]
[TimeControl "5400+30"]

{[%evp 21,51,47,105,51,97,103,143,151,181,170,219,212,216,144,153,81,463,245,289,0,497,490,507,518,495,494,494,493,496,491,29986,29987]} 1. c4 {[%emt 0:00:30]} c6 {[%emt 0:02:54]} 2. e4 {[%emt 0:00:26]} d5 {[%emt 0:00:15]} 3. exd5 {[%emt 0:00:23]} cxd5 {[%emt 0:00:07]} 4. d4 {[%emt 0:00:13]} Nf6 {[%emt 0:00:25]} 5. Nc3 {[%emt 0:00:38]} dxc4 {[%emt 0:02:34]} 6. Bxc4 {[%emt 1:31:20]} e6 {[%emt 1:27:15]} 7. Nf3 {[%emt 0:00:00]} Be7 {[%emt 0:00:00]} 8. O-O {[%emt 0:00:00]} O-O {[%emt 0:00:00]} 9. Qe2 {[%emt 0:00:00]} Nc6 {[%emt 0:00:00]} 10. Rd1 {[%emt 0:00:00][%cal Bf1d1,Bd1d3,Bd3h3][%mdl 32]} Nb4 {[%emt 0:00:00]} 11. Ne5 {[%emt 0:00:00]} Nbd5 {[%emt 0:00:00]} ({Black should try} 11... Nc6 $14) 12. Bg5 {[%emt 0:00:00]} (12. Rd3 $16) 12... Re8 {[%emt 0:00:00]} (12... Nd7 $14 13. Bxd5 Bxg5 14. Nxd7 Qxd7) 13. Rd3 $16 {[%emt 0:00:00]} Bd7 {[%emt 0:00:00]} 14. Rh3 {[%emt 0:00:00] Threatens to win with Ne4. White is clearly better.} Rc8 {[%emt 0:00:00]} 15. Re1 {[%emt 0:00:00]} a6 {[%emt 0:00:00]} (15... g6 $142 16. Rf3 Nb6) 16. Bd3 $18 {[%emt 0:00:00]} g6 {[%emt 0:00:00]} 17. Qf3 {[%emt 0:00:00]} Bc6 {[%emt 0:00:00]} 18. Ne4 {[%emt 0:00:00] White is much more active.} (18. Nxd5 $142 Qxd5 (18... Bxd5 $2 19. Qf4 $18) 19. Bxf6 Qxf3 20. Rxf3 Bxf3 21. Bxe7 Bxg2 22. Bg5) 18... Qa5 $2 {[%emt 0:00:00][%mdl 8192]} (18... Rf8 $16 {is more resistant.}) 19. Bd2 {[%emt 0:00:00]} (19. Nxf6+ Bxf6 20. Rf1 Bxe5 21. dxe5 Rc7 $11) (19. Rb1 $142) 19... Qb6 {[%emt 0:00:00]} 20. g4 $2 {[%emt 0:00:00]} (20. Rxh7 $18 Kxh7 21. Ng5+ Kg8 22. Nexf7) 20... Qxd4 $2 {[%emt 0:00:00][%mdl 8192] [#]} (20... Qxb2 21. g5 Rf8 22. gxf6 $18 (22. Nxf6+ Bxf6 23. Nc4 Qxd4 $16)) (20... Rf8 $1 $11 {and Black has nothing to worry.}) 21. Bc3 $1 {[%emt 0:00:00]} Nxc3 {[%emt 0:00:00]} 22. Nxf6+ {[%emt 0:00:00]} Bxf6 {[%emt 0:00:00]} 23. Qxf6 {[%emt 0:00:00]} Rc7 {[%emt 0:00:00]} 24. bxc3 {[%emt 0:00:00]} Qxc3 {[%emt 0:00:00]} 25. Rd1 {[%emt 0:00:00][%cal Rd3g6] White threatens Bxg6! and mate.} Qd4 {[%emt 0:00:00] [#]} (25... Qb4 $18 26. Qh4 h5) 26. Rxh7 $3 {[%emt 0:00:00][%mdl 512] Weighted Error Value: White=0.62/Black=1.04.  Loses game:     	---       	Black=2      Missed win:     	White=1     	---        Mistake:       	White=2     	Black=3      Inaccurate:     	White=1     	Black=1      OK:         	White=7     	Black=4      Best:        	---       	Black=1      Strong:       	White=1     	---        Brilliant:      	White=1     	---} 1-0

[Event "1000GM Schev-G3 March 2024"]
[Site "Santa Clara"]
[Date "2024.03.10"]
[Round "2.3"]
[White "Blandon Villa, Diego F"]
[Black "Champsi, Imran"]
[Result "1-0"]
[ECO "C48"]
[WhiteElo "2274"]
[BlackElo "2057"]
[Annotator "TA"]
[PlyCount "49"]
[EventDate "2024.03.06"]
[EventType "schev"]
[EventCountry "USA"]
[SourceTitle "playchess.com"]
[Source "ChessBase"]
[SourceQuality "1"]
[TimeControl "5400+30"]

{[%evp 11,49,6,43,33,38,6,9,4,3,12,2,-8,38,21,38,37,39,38,39,32,90,93,93,89,82,58,132,137,212,214,711,722,663,493,714,690,29994,29995,29995,29996]} 1. e4 {[%emt 0:06:55]} e5 {[%emt 0:00:40]} 2. Nf3 {[%emt 0:16:36]} Nf6 {[%emt 0:00:02][%cal Bg8f6,Bf6e4,Be4c3][%mdl 32]} 3. Nc3 {[%emt 0:00:23]} Nc6 {[%emt 0:00:04]} 4. Bb5 {[%emt 0:00:05]} Bc5 {[%emt 0:01:01]} 5. Nxe5 {[%emt 0:00:33]} Nxe5 {[%emt 0:01:23]} 6. d4 {[%emt 0:00:07]} Bb4 {[%emt 0:01:48][%cal Of6e4] And now ...Nxe4! would win.} 7. dxe5 {[%emt 0:00:15]} Nxe4 {[%emt 0:00:02]} 8. Qg4 {[%emt 0:07:30]} Nxc3 {[%emt 0:02:02]} 9. Qxb4 {[%emt 0:00:46] The position is equal.} Nxb5 {[%emt 0:00:03]} 10. Qxb5 {[%emt 0:00:08] Black is weak on the dark squares} O-O {[%emt 0:02:08]} 11. Bf4 {[%emt 0:02:02]} c6 {[%emt 0:18:39]} (11... Qh4 $11 {deserves consideration.} 12. g3 Qh5) 12. Qc5 {[%emt 0:06:27]} Qb6 {[%emt 0:13:52]} 13. Qc3 {[%emt 0:01:37]} Qa6 {[%emt 0:13:52]} 14. a3 {[%emt 0:02:56]} Qa4 {[%emt 0:09:00]} 15. Be3 $36 {[%emt 0:11:47][%mdl 2048] White has some pressure.} f6 {[%emt 0:05:26] [#]} ({Black should play} 15... b6 $14) 16. O-O-O $1 $16 {[%emt 0:01:29] Threatens to win with exf6.} fxe5 {[%emt 0:01:25] [#]} 17. Rd6 $1 {[%emt 0:00:45]} Qe4 {[%emt 0:02:11]} 18. Re1 {[%emt 0:06:24][%cal Oe3h6] Bh6! is the strong threat.} Re8 {[%emt 0:07:00]} (18... Qf5 $1 $14) 19. Bxa7 {[%emt 0:08:30] White is more active.} Qxg2 {[%emt 0:01:20]} (19... Qf4+ $16 20. Be3 Qf7) 20. Rxe5 $18 {[%emt 0:00:37]} Rf8 {[%emt 0:02:30]} (20... Rxe5 21. Qxe5 Qf3) 21. Qc4+ {[%emt 0:05:49]} Kh8 {[%emt 0:00:07]} 22. Be3 {[%emt 0:01:26][%cal Oc4f7] White wants to mate with Qf7!} h6 {[%emt 0:01:26]} (22... Qg1+ $142 23. Rd1 Qg6) 23. Re7 {[%emt 0:02:02][%cal Od6h6] White threatens Rxh6+! and mate.} Ra5 {[%emt 0:02:46] [#]} 24. Rxh6+ $1 {[%emt 0:00:43][%mdl 512]} gxh6 {[%emt 0:00:11]} 25. Bd4+ {[%emt 0:00:14] Weighted Error Value: White=0.18 (very precise) /Black=0.72.  Mistake:       	---       	Black=5      Inaccurate:     	White=1     	Black=1      OK:         	White=4     	Black=6      Best:        	White=2     	Black=2      Strong:       	White=2     	---} 1-0

[Event "1000GM Schev-G3 March 2024"]
[Site "Santa Clara"]
[Date "2024.03.10"]
[Round "2.4"]
[White "Liu, Patrick"]
[Black "Gracia Alvarez, Gerardo Antonio"]
[Result "1/2-1/2"]
[ECO "A63"]
[WhiteElo "2068"]
[BlackElo "2233"]
[Annotator "TA"]
[PlyCount "124"]
[EventDate "2024.03.06"]
[EventType "schev"]
[EventCountry "USA"]
[SourceTitle "playchess.com"]
[Source "ChessBase"]
[SourceQuality "1"]
[TimeControl "5400+30"]

{[%evp 22,124,35,15,34,4,34,27,12,29,28,0,12,-95,-16,-32,-29,-83,-95,-115,-25,-35,-31,-281,-258,-556,-23,-22,240,245,243,239,325,313,338,337,353,344,354,351,352,279,335,335,343,250,267,234,257,186,332,163,170,174,226,158,192,178,204,206,204,137,137,0,0,0,0,0,0,0,0,0,8,8,8,8,8,8,8,8,8,8,8,8,8,8,8,8,8,8,8,8,8,8,8,8,8,8,8,8,8,8,8,8,8]} 1. d4 {[%emt 0:00:02]} Nf6 {[%emt 0:00:05]} 2. c4 {[%emt 0:00:06]} e6 {[%emt 0:00:04]} 3. g3 {[%emt 0:00:11]} c5 {[%emt 0:00:07]} 4. d5 {[%emt 0:00:05]} exd5 {[%emt 0:00:06]} 5. cxd5 {[%emt 0:00:03]} d6 {[%emt 0:00:06]} 6. Nc3 {[%emt 0:00:55]} g6 {[%emt 0:00:06]} 7. Nf3 {[%emt 0:00:19]} Bg7 {[%emt 0:00:06]} 8. Bg2 {[%emt 0:00:11]} O-O {[%emt 0:00:06]} 9. O-O {[%emt 0:00:22]} Re8 {[%emt 0:00:06]} 10. Re1 {[%emt 0:00:09]} a6 {[%emt 0:03:02]} 11. a4 {[%emt 0:00:08]} Nbd7 {[%emt 0:17:44]} 12. e4 {[%emt 0:02:29]} Qc7 {[%emt 0:01:24]} 13. Qc2 {[%emt 0:01:41]} Rb8 {[%emt 0:05:02]} 14. a5 {[%emt 0:01:41]} b5 {[%emt 0:02:27] Weiß hat minimalen Vorteil.} 15. axb6 {[%emt 0:00:12]} Rxb6 {[%emt 0:01:08]} 16. Nd2 {[%emt 0:01:44]} c4 $1 {[%emt 0:09:49]} 17. f4 {[%emt 0:20:16]} (17. Ra4 $11) 17... Ng4 {[%emt 0:13:52]} (17... Nc5 $17 {Droht ...Nd3 und aus.} 18. Bf1 (18. Nxc4 Rb4 $17) 18... Rb4) 18. Nd1 $1 $11 {[%emt 0:00:25][%cal Oh2h3]} Rb4 {[%emt 0:04:44]} 19. Nf3 {[%emt 0:07:21]} (19. Ra4 $11 {bleibt in der Remisbreite.}) 19... Nc5 $17 {[%emt 0:08:48][%cal Oc4c3] ...c3! wäre nun fies.} 20. Bd2 {[%emt 0:05:26]} Rb8 {[%emt 0:18:42]} ({Günstiger ist} 20... c3 $1 $17 {[%cal Rc3d2]} 21. bxc3 Rbxe4 (21... Nxe4 22. Bf1 $17)) 21. Qxc4 $11 {[%emt 0:03:10] h3 ist eine echte Drohung.} Bd7 {[%emt 0:03:37][%cal Oc7a7]} 22. Qc2 $2 {[%emt 0:05:15]} (22. Bb4 $15) 22... Qa7 $1 $19 {[%emt 0:01:39]} 23. Kh1 $2 {[%emt 0:00:32]} (23. Be3 {war die einzige Chance.} Nxe3 (23... Rxe4 $2 24. Qxe4 Bf5 25. Qc4 $18) 24. Rxe3 Nxe4 25. Bf1) 23... Bb5 $2 {[%emt 0:03:03]} (23... Rxb2 $1 $19 24. Nxb2 Nxe4) 24. Ra3 $1 $11 {[%emt 0:04:31] [#]} Nxe4 $2 {[%emt 0:03:13][%mdl 8192]} 25. Rxe4 $18 {[%emt 0:01:13]} Rxe4 {[%emt 0:00:02]} 26. Qxe4 {[%emt 0:00:25]} Re8 {[%emt 0:00:02] [#]} 27. Qb4 {[%emt 0:01:21] Und Qxb5 würde nun gewinnen.} Be2 {[%emt 0:00:28]} 28. h3 {[%emt 0:01:06]} Bxd1 {[%emt 0:00:42]} 29. hxg4 {[%emt 0:00:20]} Qf2 {[%emt 0:00:29]} 30. Be1 {[%emt 0:00:27]} (30. Qxd6 Bf8 (30... Bxf3 31. Rxf3 Qxd2 32. Qxa6 $15) 31. Qd7 (31. Qc6 $2 Re2 $19) 31... Re7 $17 (31... Re2 32. Nh4 $15)) 30... Qxb2 {[%emt 0:00:48]} 31. Bc3 {[%emt 0:04:30]} (31. Rxa6 Bxf3 32. Bxf3 Qc1 $16) 31... Qc1 {[%emt 0:00:30]} 32. Bd2 {[%emt 0:00:11]} Qc8 {[%emt 0:00:35]} 33. Bc3 {[%emt 0:03:38] Droht stark Bxg7.} (33. Qxd6 Bf8 34. Qxa6 Qxg4 $18) 33... Bxc3 {[%emt 0:00:43]} 34. Qxc3 {[%emt 0:00:28]} (34. Rxc3 Qxg4 35. Nh2 (35. Qxd6 Qxg3 36. Qxa6 Re2 $14) 35... Re1+ 36. Bf1 Qh3) 34... Qxg4 {[%emt 0:00:05]} 35. Qd2 {[%emt 0:00:20]} ({Schwächer ist} 35. Rxa6 Qxg3 36. Ra1 Be2 $14) 35... Be2 {[%emt 0:01:11]} (35... Bxf3 $142 36. Rxf3 h6) 36. Re3 {[%emt 0:00:17]} (36. Ng5 $142) 36... Rxe3 {[%emt 0:00:11]} 37. Qxe3 {[%emt 0:00:01]} Bb5 {[%emt 0:00:07] Gegen Qe8+ gerichtet.} (37... Bxf3 {ist eine bessere Verteidigung.} 38. Qxf3 Qxf3 39. Bxf3 a5) 38. Nd4 {[%emt 0:00:58]} Qd1+ {[%emt 0:01:18]} 39. Kh2 {[%emt 0:00:31]} Qd3 {[%emt 0:00:20]} 40. Qxd3 {[%emt 0:00:24]} Bxd3 {[%emt 0:00:03]} 41. Bf3 {[%emt 0:00:21]} a5 {[%emt 0:00:19][%cal Ba6a5,Ba5a4,Ba4a3][%mdl 32] [#]} 42. Be2 {[%emt 0:00:28]} (42. Bd1 $1 $16) 42... Bxe2 $11 {[%emt 0:00:37] Die Stellung ist ausgeglichen.} 43. Nxe2 {[%emt 0:00:01][%mdl 4096] Endspiel. KN-KP} a4 {[%emt 0:00:10]} 44. Nc3 {[%emt 0:00:05]} a3 {[%emt 0:00:03]} 45. Kg2 {[%emt 0:00:04]} h5 {[%emt 0:01:50]} 46. Kf3 {[%emt 0:00:17]} f6 {[%emt 0:00:20]} 47. Ke3 {[%emt 0:00:29]} Kf7 {[%emt 0:01:13]} 48. Kd3 {[%emt 0:02:16] Zielt auf Kc2 ab.} (48. Kd2 $5 g5 $8 49. Ke3 $11) 48... g5 {[%emt 0:00:29][%cal Bg6g5,Bg5h4,Bh4h3][%mdl 32]} 49. f5 {[%emt 0:00:05] Und jetzt Kc2 wäre schön.} h4 {[%emt 0:00:58]} 50. gxh4 {[%emt 0:00:21]} gxh4 {[%emt 0:00:05]} 51. Kc2 {[%emt 0:00:56]} h3 {[%emt 0:00:17][%cal Oa3a2]} 52. Ne4 {[%emt 0:00:09]} h2 {[%emt 0:00:05]} (52... a2 $5 53. Kb2 $8 h2 $11) 53. Nf2 $1 {[%emt 0:00:03]} Kg7 {[%emt 0:00:16]} 54. Kb3 {[%emt 0:00:53]} Kh6 {[%emt 0:00:06] ( -> ...Kg5)} 55. Ng4+ {[%emt 0:00:57]} (55. Kxa3 $2 {zu gefräßig.} Kg5 56. Kb4 Kf4 57. Nd3+ Kf3 $19 (57... Kxf5 $2 58. Nf2 $19)) 55... Kg5 $132 {[%emt 0:00:03][%mdl 2048] Schwarz leistet Widerstand} 56. Nxh2 {[%emt 0:00:05]} Kxf5 {[%emt 0:00:04]} 57. Kxa3 {[%emt 0:00:06] KN-KPP} Ke4 {[%emt 0:00:06]} 58. Kb3 $1 {[%emt 0:00:15]} Kxd5 {[%emt 0:00:27]} 59. Kc3 {[%emt 0:00:23]} Ke4 {[%emt 0:00:07]} 60. Kd2 {[%emt 0:00:06]} f5 {[%emt 0:00:33]} 61. Ke2 {[%emt 0:00:10]} d5 {[%emt 0:00:09]} 62. Nf3 {[%emt 0:00:07]} d4 {[%emt 0:00:07] Schwarz hat sich erfolgreich gewehrt.   Gewichteter Fehlerwert: Weiß=0.35/Schwarz=0.37.  Verlustzug:     	Weiß=1     	Schwarz=1     Gewinn verpasst:   	---       	Schwarz=1     Fehler:       	Weiß=5     	Schwarz=4     Ungenau:       	Weiß=3     	Schwarz=2     OK:         	Weiß=16    	Schwarz=13    Bester:       	Weiß=8     	Schwarz=8     Stark:        	Weiß=4     	Schwarz=2} 1/2-1/2

[Event "1000GM Schev-G3 March 2024"]
[Site "Santa Clara"]
[Date "2024.03.10"]
[Round "2.5"]
[White "Suarez, Sebastian"]
[Black "Heimann, Alexander"]
[Result "1/2-1/2"]
[ECO "B80"]
[WhiteElo "2113"]
[BlackElo "2290"]
[Annotator "TA"]
[PlyCount "44"]
[EventDate "2024.03.06"]
[EventType "schev"]
[EventCountry "USA"]
[SourceTitle "playchess.com"]
[Source "ChessBase"]
[SourceQuality "1"]
[TimeControl "5400+30"]

{[%evp 17,44,22,25,-53,0,0,0,0,0,-8,0,0,0,-50,-27,-114,96,102,95,118,83,0,0,0,0,0,0,0,0]} 1. e4 {[%emt 0:00:30]} c5 {[%emt 0:03:44]} 2. Nf3 {[%emt 0:02:16]} d6 {[%emt 0:00:08]} 3. d4 {[%emt 0:00:09]} cxd4 {[%emt 0:00:08]} 4. Nxd4 {[%emt 0:00:09]} Nf6 {[%emt 0:00:05]} 5. Nc3 {[%emt 0:00:13]} a6 {[%emt 0:00:39]} 6. f3 {[%emt 0:00:22]} e6 {[%emt 0:00:11]} 7. Be3 {[%emt 0:01:33]} b5 {[%emt 0:00:06]} 8. Qd2 {[%emt 0:01:09]} Bb7 {[%emt 0:00:09]} 9. O-O-O {[%emt 0:09:46]} Nbd7 {[%emt 0:00:20]} 10. Nb3 {[%emt 0:11:33]} ({White should try} 10. Kb1 $11) 10... Ne5 {[%emt 0:01:09]} ({Black should play} 10... Qc7 $15) 11. Qf2 {[%emt 0:02:02][%cal Ob3a5]} Nfd7 {[%emt 0:00:36]} 12. h3 {[%emt 0:10:30]} Rc8 {[%emt 0:00:20]} 13. f4 {[%emt 0:02:26]} Nc4 {[%emt 0:00:09]} 14. Bxc4 {[%emt 0:00:13]} Rxc4 {[%emt 0:00:48]} 15. a3 {[%emt 0:01:41]} (15. f5 $11) 15... Qc7 {[%emt 0:09:00][%cal Oc4c3]} (15... Rxc3 $5 16. bxc3 Qc7 $15) 16. Rhe1 {[%emt 0:02:44] [#]} (16. Rd3 $11 {remains equal.}) 16... Nf6 $2 {[%emt 0:04:10]} (16... Be7 $1 $17 {[%cal Oe8g8]} 17. Qg3 O-O (17... Bxe4 18. Nxe4 Rxe4 19. Qxg7 $16)) 17. Bb6 $16 {[%emt 0:05:07]} Qb8 {[%emt 0:02:12]} 18. e5 {[%emt 0:08:14] White is more active.} Ne4 {[%emt 0:01:47] [#] Black is weak on the dark squares} 19. Rxe4 {[%emt 0:11:57]} Bxe4 $11 {[%emt 0:00:09] The position is equal.} 20. Ba7 {[%emt 0:00:34]} ({But not} 20. Na5 Rxc3 21. bxc3 Bd5 $17) 20... Qc7 {[%emt 0:04:57]} 21. Bb6 {[%emt 0:00:09]} Qb8 {[%emt 0:02:16][%cal Oc4c3]} 22. Ba7 {[%emt 0:00:08]} ({Much weaker is} 22. Na5 Rxc3 23. bxc3 Bd5 $17) 22... Qc7 {[%emt 0:03:54] Weighted Error Value: White=0.28 (precise) /Black=0.36.  Mistake:       	White=3     	Black=2      OK:         	White=6     	Black=4      Best:        	White=1     	Black=1} 1/2-1/2

[Event "1000GM Schev-G3 March 2024"]
[Site "Santa Clara"]
[Date "2024.03.10"]
[Round "3.1"]
[White "Chinni, Rishabh"]
[Black "Dominguez Aguilar, Guillermo"]
[Result "1/2-1/2"]
[ECO "B76"]
[WhiteElo "2010"]
[BlackElo "2284"]
[Annotator "TA"]
[PlyCount "70"]
[EventDate "2024.03.06"]
[EventType "schev"]
[EventCountry "USA"]
[SourceTitle "playchess.com"]
[Source "ChessBase"]
[SourceQuality "1"]
[TimeControl "5400+30"]

{[%evp 26,70,-18,-19,-15,-8,-18,-12,-4,-34,-27,-25,-42,-22,-26,-40,-9,-8,0,0,10,0,0,0,6,6,17,4,4,4,54,0,0,0,0,0,0,0,0,0,77,85,77,36,77,77,77]} 1. e4 {[%emt 0:00:01]} c5 {[%emt 0:02:16]} 2. Nf3 {[%emt 0:00:05]} d6 {[%emt 0:00:29]} 3. d4 {[%emt 0:00:04]} cxd4 {[%emt 0:00:11]} 4. Nxd4 {[%emt 0:00:02]} Nf6 {[%emt 0:00:07]} 5. Nc3 {[%emt 0:00:03]} g6 {[%emt 0:00:32]} 6. Be3 {[%emt 0:00:09]} Bg7 {[%emt 0:00:08]} 7. f3 {[%emt 0:00:03]} Nc6 {[%emt 0:00:06]} 8. Qd2 {[%emt 0:00:02]} O-O {[%emt 0:01:22]} 9. O-O-O {[%emt 0:00:05]} Be6 {[%emt 0:00:16]} 10. g4 {[%emt 0:06:51]} Nxd4 {[%emt 0:00:45]} 11. Bxd4 {[%emt 0:00:10]} Qa5 {[%emt 0:00:12]} 12. Kb1 {[%emt 0:04:08]} Rfc8 {[%emt 0:01:18]} 13. Nd5 {[%emt 0:02:58]} Qxd2 {[%emt 0:00:33]} 14. Nxf6+ $1 {[%emt 0:00:05]} Bxf6 {[%emt 0:00:35]} 15. Rxd2 {[%emt 0:00:03]} Bxd4 {[%emt 0:00:14]} 16. Rxd4 {[%emt 0:00:03]} Rc5 {[%emt 0:00:05] The position is equal.} 17. Be2 {[%emt 0:01:29]} Rac8 {[%emt 0:00:15]} 18. c3 {[%emt 0:02:32]} h5 {[%emt 0:00:19]} 19. h3 {[%emt 0:02:33]} Kg7 {[%emt 0:01:09]} 20. f4 {[%emt 0:02:56][%cal Bf3f4,Bf4f5][%mdl 32]} hxg4 {[%emt 0:00:38]} 21. hxg4 {[%emt 0:00:32]} g5 {[%emt 0:00:40]} 22. f5 {[%emt 0:02:59]} Bd7 {[%emt 0:00:25]} 23. Bf3 {[%emt 0:10:00]} Bc6 {[%emt 0:02:27]} 24. Kc2 {[%emt 0:01:14]} Kf6 {[%emt 0:03:02]} 25. Kd3 {[%emt 0:02:47]} a5 {[%emt 0:03:03]} 26. Ke3 {[%emt 0:11:55]} a4 {[%emt 0:02:31][%cal Oa4a3] [#] aiming for ...a3!} 27. a3 {[%emt 0:00:49]} Ra8 {[%emt 0:00:55]} ({Black should try} 27... Kg7 $11) 28. Bd1 {[%emt 0:05:14]} (28. Rh7 $14) 28... Re5 $11 {[%emt 0:00:47]} 29. Rh6+ {[%emt 0:02:03]} Kg7 {[%emt 0:00:21]} 30. Rh5 {[%emt 0:00:23]} f6 {[%emt 0:00:28]} 31. Bc2 {[%emt 0:01:37]} d5 {[%emt 0:05:11]} 32. Rd2 {[%emt 0:01:19]} dxe4 {[%emt 0:03:20] [#]} (32... b5 $11 {keeps the balance.}) 33. Rdh2 $1 $16 {[%emt 0:01:37] White threatens Rh7+ and mate.} Rg8 {[%emt 0:00:19]} 34. Rh7+ {[%emt 0:00:12][%mdl 1024] White has strong compensation.} Kf8 {[%emt 0:00:02]} 35. Rd2 {[%emt 0:01:03] White is much more active.} Ke8 {[%emt 0:04:24] Inhibits Rd8+.   Weighted Error Value: White=0.05 (flawless) /Black=0.14 (very precise) .  Mistake:       	White=1     	Black=2      Inaccurate:     	White=1     	Black=2      OK:         	White=8     	Black=8      Best:        	White=1     	Black=2      Strong:       	White=1     	---} 1/2-1/2

[Event "1000GM Schev-G3 March 2024"]
[Site "Santa Clara"]
[Date "2024.03.10"]
[Round "3.2"]
[White "Penagalapati, Abhinav"]
[Black "Blandon Villa, Diego F"]
[Result "1-0"]
[ECO "A26"]
[WhiteElo "2043"]
[BlackElo "2274"]
[Annotator "TA"]
[PlyCount "69"]
[EventDate "2024.03.06"]
[EventType "schev"]
[EventCountry "USA"]
[SourceTitle "playchess.com"]
[Source "ChessBase"]
[SourceQuality "1"]
[TimeControl "5400+30"]

{[%evp 24,69,20,18,36,29,27,14,24,0,25,35,43,29,30,34,28,-17,13,12,28,12,26,23,45,37,42,9,91,87,160,174,152,126,141,58,52,34,202,83,229,218,392,381,395,410,390,390]} 1. c4 {[%emt 0:00:10]} Nf6 {[%emt 0:02:20]} 2. Nf3 {[%emt 0:01:20]} g6 {[%emt 0:00:18]} 3. g3 {[%emt 0:00:28]} Bg7 {[%emt 0:00:20]} 4. Bg2 {[%emt 0:00:05]} O-O {[%emt 0:00:08]} 5. O-O {[%emt 0:00:05]} d6 {[%emt 0:01:35]} 6. Nc3 {[%emt 0:00:23]} e5 {[%emt 0:00:43]} 7. d3 {[%emt 0:00:54]} Nc6 {[%emt 0:01:56]} 8. Rb1 {[%emt 0:00:41]} a5 {[%emt 0:02:41]} 9. a3 {[%emt 0:02:07][%cal Ba2a3,Ba3b4,Bb4b5,Bb5b6][%mdl 32]} h6 {[%emt 0:02:46]} 10. b4 {[%emt 0:04:45]} axb4 {[%emt 0:01:18]} 11. axb4 {[%emt 0:00:02]} Be6 {[%emt 0:00:46]} 12. b5 {[%emt 0:09:35]} Ne7 {[%emt 0:00:08]} 13. Bb2 {[%emt 0:01:23]} c6 {[%emt 0:01:31]} 14. Ra1 {[%emt 0:04:19]} Qc7 {[%emt 0:01:50]} 15. Nd2 {[%emt 0:04:38]} d5 {[%emt 0:02:53] The position is equal.} 16. Qb3 {[%emt 0:00:56]} Rfd8 {[%emt 0:14:29]} 17. b6 {[%emt 0:07:30]} Qb8 {[%emt 0:08:43]} 18. Rxa8 {[%emt 0:05:41]} Qxa8 {[%emt 0:00:06]} 19. Ra1 {[%emt 0:06:20]} Qb8 {[%emt 0:00:39]} 20. Ba3 {[%emt 0:03:17]} Nc8 {[%emt 0:07:53][%cal Oe5e4]} 21. Na4 {[%emt 0:00:36]} dxc4 {[%emt 0:07:55]} 22. Nxc4 {[%emt 0:03:10]} Nd7 {[%emt 0:02:30][%cal Oe5e4]} 23. Rb1 {[%emt 0:00:55]} Bf8 {[%emt 0:04:13]} (23... Bf6 {with more complications.} 24. e3 Qa8 25. Bxc6 bxc6 26. b7 Qb8) 24. Bxf8 {[%emt 0:16:08]} Nxf8 {[%emt 0:01:56]} 25. Qb4 {[%emt 0:01:53]} Bd5 {[%emt 0:04:24]} (25... Bxc4 $11 {remains equal.} 26. dxc4 (26. Qxc4 Ne6 $14) 26... Ne6) 26. Bxd5 {[%emt 0:02:14]} Rxd5 {[%emt 0:02:50]} ({Better is} 26... cxd5 27. Ne3 d4) 27. Nc3 $16 {[%emt 0:00:10] White is much more active.} Rd4 {[%emt 0:01:14]} 28. Ra1 {[%emt 0:07:27]} Nd7 {[%emt 0:04:31][%cal Oc8b6]} 29. Qb2 {[%emt 0:01:05]} (29. Qa5 $16 {Qa8 would now be deadly.} Kg7 30. Rd1) 29... Nd6 $14 {[%emt 0:05:26]} 30. Nd2 $36 {[%emt 0:02:53][%cal Bc4d2,Bd2b3,Bb3c5][%mdl 2080] Strongly threatening Nf3. White is more active.} c5 $2 {[%emt 0:03:58] [#]} (30... Nc8 $1 $14) 31. Qa3 {[%emt 0:01:31]} (31. Nb3 $1 $18 {is the precise move to win.}) 31... Nxb6 {[%emt 0:04:06] [#]} (31... Nc8 $16 {keeps fighting.}) 32. Nb3 $1 $18 {[%emt 0:03:21]} ({Don't play} 32. Qxc5 Nd7 33. Qa5 Ne8) 32... Rg4 $2 {[%emt 0:04:10]} (32... Qc7 33. Nxd4 (33. Nxc5 Nd5 $16) (33. Qxc5 Qxc5 34. Nxc5 Rb4 $14) 33... exd4) 33. Nxc5 {[%emt 0:01:37] White is winning.} ({Weaker is} 33. Qxc5 Nd7 34. Qa5 b6 $18) 33... Qc7 {[%emt 0:04:49]} 34. h3 {[%emt 0:00:28]} Rd4 {[%emt 0:00:57]} 35. e3 {[%emt 0:01:23] Weighted Error Value: White=0.17 (very precise) /Black=0.38.  Loses game:     	---       	Black=1      Mistake:       	White=2     	Black=4      Inaccurate:     	White=2     	Black=1      OK:         	White=10    	Black=5      Best:        	---       	Black=1} 1-0